bitfinex/quotes_ETHUSD_20260225
["timestamp","ask_amount","ask_price","bid_price","bid_amount"]
[1771986690163,4.41826932,1934.0,1933.1,4.31400147]
[1771986690313,5.71075837,1934.3,1933.1,4.31400147]
[1771986690623,5.71075837,1934.3,1933.3,4.31400147]
[1771986690826,4.41826932,1934.2,1933.3,4.31400147]
[1771986691009,4.41826932,1934.2,1933.4,1.778]
[1771986691438,1.29259086,1934.1,1933.5,1.29299198]
[1771986691647,6.87416092,1934.7,1933.6,4.31400147]
[1771986691819,5.16927515,1934.6,1933.7,4.31400147]
[1771986692750,5.71032575,1934.9,1933.9,4.31400147]
[1771986692920,4.41826932,1934.8,1933.9,4.31400147]
[1771986693547,4.41826932,1934.8,1933.8,5.60674224]
[1771986693919,4.41826932,1934.8,1933.9,4.31400147]
[1771986695118,4.41826932,1934.6,1933.7,5.60683233]
[1771986695316,1.29232359,1934.5,1933.7,5.60683233]
[1771986695537,4.41826932,1934.3,1933.4,4.31400147]
[1771986695749,4.41826932,1934.3,1933.3,1.29312574]
[1771986696549,4.41826932,1934.3,1933.4,4.31400147]
[1771986697549,5.71079336,1934.2,1933.4,5.60703244]
[1771986697921,1.29245372,1934.4,1933.5,4.31400147]
[1771986699219,5.71064602,1934.5,1933.5,4.31400147]
[1771986699634,5.71064602,1934.5,1933.6,1.29292511]
[1771986699849,5.71064602,1934.5,1933.7,4.31400147]
[1771986700931,5.71060929,1934.5,1933.7,4.31400147]
[1771986701373,5.71059666,1934.5,1933.7,4.31400147]
[1771986701661,5.71059666,1934.5,1933.9,4.31400147]
[1771986702024,1.29232734,1934.5,1933.9,4.31400147]
[1771986702662,5.71049584,1934.7,1933.9,4.31400147]
[1771986704340,5.71049584,1934.7,1934.0,1.2926577]
[1771986704858,1.29413494,1934.8,1934.1,4.31400147]
[1771986707500,4.42026932,1934.8,1933.7,4.31400147]
[1771986709267,0.002,1934.7,1933.7,4.31400147]
[1771986709443,0.002,1934.7,1933.9,4.31400147]
[1771986711644,0.002,1934.7,1934.0,5.60665917]
[1771986713176,0.002,1934.7,1934.1,4.31400147]
[1771986713964,7.37300937,1935.0,1934.4,4.31400147]
[1771986714300,4.42026932,1935.0,1934.3,4.31400147]
[1771986714575,1.29399239,1935.0,1934.3,4.31400147]
[1771986714764,4.42026932,1935.0,1934.3,4.31400147]
[1771986714975,5.71227297,1935.0,1934.3,4.31400147]
[1771986716158,5.71227297,1935.0,1934.4,1.2923904]
[1771986716783,4.29741949,1934.9,1934.2,5.37519711]
[1771986716993,4.29741949,1934.9,1934.0,4.08271967]
[1771986718466,5.58953145,1934.9,1934.2,4.08271967]
[1771986720486,5.58953145,1934.9,1934.3,1.29245721]
[1771986720788,0.002,1935.0,1934.4,4.08271967]
[1771986721490,0.002,1934.8,1934.4,4.08271967]
[1771986721788,0.002,1935.0,1934.4,4.08271967]
[1771986721789,0.002,1934.9,1934.4,4.08271967]
[1771986722197,0.002,1934.9,1934.3,6.15766471]
[1771986722198,0.002,1935.1,1934.5,4.08271967]
[1771986722990,0.002,1935.1,1934.7,4.08271967]
[1771986725065,0.002,1935.1,1934.8,1.29212321]
[1771986725398,0.002,1935.1,1934.8,5.37484288]
[1771986725562,0.002,1935.1,1934.9,4.08271967]
[1771986725758,0.002,1935.1,1934.8,1.29212321]
[1771986725759,0.002,1935.1,1934.6,4.08271967]
[1771986725985,4.29941949,1935.1,1934.5,1.29227491]
[1771986726767,4.29941949,1935.1,1934.4,1.29233267]
[1771986726984,4.29741949,1935.0,1934.1,5.37527162]
[1771986727288,4.29741949,1934.8,1934.1,5.37527162]
[1771986728687,4.29741949,1934.8,1934.0,4.08271967]
[1771986729399,5.58960949,1934.7,1934.0,5.3753529]
[1771986729569,4.29741949,1934.6,1933.8,4.08271967]
[1771986729903,4.29741949,1934.6,1933.7,4.08271967]
[1771986731360,5.58955399,1934.8,1933.9,4.08271967]
[1771986732466,4.29741949,1934.8,1934.1,4.08271967]
[1771986732661,5.58954576,1934.8,1934.1,4.08271967]
[1771986733594,5.58954576,1934.8,1934.2,4.08271967]
[1771986733797,8.04534242,1935.0,1934.2,4.08271967]
[1771986734092,1.29392782,1935.1,1934.3,4.08271967]
[1771986734297,0.002,1935.0,1934.3,4.08271967]
[1771986735090,4.29941949,1935.0,1934.3,4.08271967]
[1771986735868,5.59143249,1935.0,1934.4,1.2923904]
[1771986736472,5.59143249,1935.0,1934.4,5.37511007]
[1771986736669,0.002,1935.0,1934.5,4.08271967]
[1771986738488,4.29941949,1935.0,1934.3,1.29241962]
[1771986738681,4.29941949,1935.0,1934.4,4.08271967]
[1771986740199,0.002,1935.0,1934.5,5.37504326]
[1771986740700,1.29399243,1935.0,1934.5,5.37504326]
[1771986742804,0.002,1935.0,1934.5,5.37504326]
[1771986743107,4.29941949,1935.0,1934.4,1.29234344]
[1771986743874,4.29941949,1935.0,1934.4,5.37506311]
[1771986744301,4.29941949,1935.0,1934.5,4.08271967]
[1771986745102,1.29205643,1934.9,1934.5,4.08271967]
[1771986745782,5.59146252,1935.0,1934.5,4.08271967]
[1771986746274,5.59146252,1935.0,1934.6,0.001]
[1771986746596,0.002,1934.9,1934.6,0.001]
[1771986748706,3.85304602,1934.9,1934.6,0.001]
[1771986749480,5.14316923,1934.8,1934.6,0.001]
[1771986749677,3.85104602,1934.7,1934.3,0.001]
[1771986752014,3.85104602,1934.5,1934.3,0.001]
[1771986752891,3.85104602,1934.5,1933.8,5.42071401]
[1771986754195,3.85104602,1934.4,1933.8,5.42071401]
[1771986755490,3.46896696,1934.2,1933.8,0.001]
[1771986755811,3.85104602,1934.1,1933.5,0.001]
[1771986756313,3.85104602,1933.9,1933.5,0.001]
[1771986757722,3.85104602,1934.1,1933.5,4.12796582]
[1771986758220,3.85104602,1934.3,1933.7,4.12696582]
[1771986759113,1.29245571,1934.4,1933.7,4.12696582]
[1771986759502,5.14350173,1934.4,1933.7,4.12696582]
[1771986760383,3.85104602,1934.3,1933.7,1.29282858]
[1771986760583,3.85104602,1934.3,1933.6,5.42082896]
[1771986761506,3.85104602,1934.2,1933.6,5.42082896]
[1771986763134,5.14360179,1934.2,1933.6,5.42082896]
[1771986764118,3.85104602,1934.1,1933.6,4.12796582]
[1771986764915,3.85104602,1934.1,1933.6,0.001]
[1771986765314,1.2926577,1934.0,1933.6,0.001]
[1771986765515,5.1436675,1934.1,1933.6,0.001]
[1771986765714,3.85104602,1934.1,1933.6,0.001]
[1771986766419,3.85104602,1934.0,1933.6,0.001]
[1771986766714,5.14364125,1934.1,1933.6,4.12796582]
[1771986767015,3.85104602,1934.0,1933.6,4.12796582]
[1771986768814,1.29259523,1934.1,1933.6,4.12796582]
[1771986769118,1.2925778,1934.2,1933.7,4.12696582]
[1771986769588,15.10000823,1934.3,1933.7,4.12696582]
[1771986769589,6.079,1934.3,1933.7,4.12696582]
[1771986770302,6.079,1934.3,1933.8,5.41975721]
[1771986771691,6.079,1934.3,1933.9,4.12696582]
[1771986771891,5.14346326,1934.4,1933.9,4.12696582]
[1771986772316,0.002,1934.0,1933.9,4.12696582]
[1771986772510,0.002,1934.2,1933.9,5.41968263]
[1771986772706,0.002,1934.2,1933.9,4.12696582]
[1771986772910,0.002,1934.2,1933.9,5.41968867]
[1771986774522,0.002,1934.2,1933.9,1.29272285]
[1771986774732,3.85104602,1933.9,1933.3,0.001]
[1771986774896,3.85104602,1933.9,1932.3,0.001]
[1771986774897,3.85104602,1933.3,1932.3,0.001]
[1771986775092,3.85104602,1933.3,1932.5,0.003]
[1771986775296,4.11453487,1933.2,1932.5,4.0065868]
[1771986775498,4.11453487,1933.4,1932.7,4.0035868]
[1771986775816,3.089451,1933.3,1932.7,4.0035868]
[1771986776727,3.089451,1933.3,1932.9,4.0035868]
[1771986777053,7.87934749,1933.6,1932.9,4.0035868]
[1771986777199,3.08642746,1933.5,1933.0,0.003]
[1771986778722,4.37947097,1933.5,1933.0,0.003]
[1771986778948,3.08642746,1933.4,1933.0,0.003]
[1771986779516,3.08642746,1933.4,1932.9,4.0035868]
[1771986779722,3.08642746,1933.4,1933.0,0.003]
[1771986780031,7.20096233,1933.4,1933.0,0.003]
[1771986780222,4.11453487,1933.4,1933.0,0.003]
[1771986780704,3.08595618,1933.3,1933.0,0.003]
[1771986781410,5.40760744,1933.4,1933.0,0.003]
[1771986781607,5.40760744,1933.4,1933.1,0.003]
[1771986781812,4.11453487,1933.4,1933.0,0.003]
[1771986782011,1.29304186,1933.5,1933.1,0.003]
[1771986782216,3.08545974,1933.4,1933.0,0.003]
[1771986782402,3.08545974,1933.4,1932.9,0.003]
[1771986782903,5.4076263,1933.4,1932.9,0.003]
[1771986784128,5.4076263,1933.4,1933.0,0.001]
[1771986784929,5.40759426,1933.4,1933.1,0.003]
[1771986785503,4.11453487,1933.4,1933.1,0.003]
[1771986786409,4.11453487,1933.3,1933.0,0.001]
[1771986786712,4.11453487,1933.3,1933.0,0.004]
[1771986787025,5.4077275,1933.2,1933.0,0.004]
[1771986787226,5.4077275,1933.2,1933.0,0.001]
[1771986787423,4.11453487,1933.1,1933.0,0.001]
[1771986788859,4.11453487,1933.5,1933.0,0.004]
[1771986789156,7.19748575,1933.4,1933.0,0.004]
[1771986789443,4.11453487,1933.3,1933.0,0.004]
[1771986789739,4.11453487,1933.3,1933.1,0.003]
[1771986790844,4.11453487,1933.3,1933.0,0.001]
[1771986791057,4.11453487,1933.4,1933.1,0.003]
[1771986791253,5.40760785,1933.4,1933.1,0.003]
[1771986792639,5.40760785,1933.4,1932.9,0.001]
[1771986792640,4.11453487,1933.3,1932.9,0.001]
[1771986793049,4.11453487,1933.1,1932.9,0.001]
[1771986795229,7.37206124,1933.4,1932.9,4.0045868]
[1771986795450,4.11453487,1933.3,1932.9,0.001]
[1771986796169,4.11453487,1933.1,1932.4,0.001]
[1771986796349,4.11453487,1933.1,1932.4,4.0045868]
[1771986796865,4.11453487,1933.1,1933.0,0.001]
[1771986797026,7.19947861,1933.1,1932.5,4.0035868]
[1771986797226,1.29332643,1933.0,1932.9,0.001]
[1771986797851,1.29332643,1933.0,1932.7,0.001]
[1771986798156,5.4078613,1933.0,1932.7,0.001]
[1771986800142,1.29332643,1933.0,1932.7,0.001]
[1771986800951,7.20270236,1932.9,1932.4,0.001]
[1771986801254,4.11453487,1932.9,1932.4,0.001]
[1771986801480,1.29346026,1932.8,1932.4,0.001]
[1771986802750,3.09188597,1932.7,1932.4,0.001]
[1771986803327,7.20642084,1932.7,1932.4,0.001]
[1771986803538,1.29366106,1932.5,1932.4,0.001]
[1771986804240,4.39480602,1932.5,1932.4,0.001]
[1771986804648,3.10114496,1932.5,1932.4,0.001]
[1771986807042,4.39480602,1932.5,1932.4,0.001]
[1771986807270,4.39480602,1932.5,1932.1,0.001]
[1771986807271,3.89780723,1932.4,1932.1,0.001]
[1771986807563,3.89780723,1932.2,1931.9,0.001]
[1771986807728,1.29399585,1932.0,1931.9,0.001]
[1771986808659,1.29399585,1932.0,1931.6,4.01155816]
[1771986809389,8.76178999,1931.8,1931.0,4.01155816]
[1771986809659,3.89780723,1931.8,1931.0,4.01155816]
[1771986809877,3.89780723,1931.6,1931.0,4.01155816]
[1771986810045,3.09478029,1931.5,1930.8,5.30632278]
[1771986810240,3.89780723,1931.5,1930.9,4.01155816]
[1771986811850,1.29439784,1931.4,1930.9,4.01155816]
[1771986812234,3.89780723,1931.5,1930.9,5.30628232]
[1771986812434,5.19214083,1931.5,1930.9,5.30628232]
[1771986813859,5.19214083,1931.5,1931.0,4.01155816]
[1771986814157,3.89780723,1931.5,1931.0,4.01155816]
[1771986814358,5.19214146,1931.5,1931.0,4.01155816]
[1771986815358,5.17648133,1931.9,1931.0,4.01155816]
[1771986815359,3.89780723,1931.9,1931.0,4.01155816]
[1771986815965,1.29412982,1931.8,1931.2,4.01155816]
[1771986816488,5.19193705,1931.8,1931.2,4.01155816]
[1771986816842,3.89780723,1931.7,1931.2,4.01155816]
[1771986817044,3.89780723,1931.7,1930.6,5.17961548]
[1771986817249,3.89780723,1931.7,1930.7,4.01155816]
[1771986818052,5.19207105,1931.6,1930.9,4.01155816]
[1771986818366,1.29426382,1931.6,1930.9,4.01155816]
[1771986818539,9.07486252,1931.7,1930.9,4.01155816]
[1771986818540,5.19204648,1931.7,1930.9,4.01155816]
[1771986818740,1.29415736,1931.8,1930.9,4.01155816]
[1771986819352,5.19196459,1931.8,1930.9,4.01155816]
[1771986819550,3.89780723,1931.7,1930.9,4.01155816]
[1771986820046,5.19207105,1931.6,1930.9,5.30627309]
[1771986820245,3.89780723,1931.5,1930.9,4.01155816]
[1771986820552,3.89780723,1931.5,1930.9,5.30628686]
[1771986821381,3.89780723,1931.5,1931.0,4.01155816]
[1771986821587,5.19204985,1931.7,1931.0,4.01155816]
[1771986822265,5.19204985,1931.7,1931.0,5.30617213]
[1771986822583,5.19204985,1931.7,1931.0,5.30717213]
[1771986822947,3.89780723,1931.6,1931.0,5.30717213]
[1771986823371,3.89780723,1931.6,1931.1,4.01155816]
[1771986824771,5.19207275,1931.6,1931.1,5.30613128]
[1771986825274,5.19207275,1931.6,1931.1,4.01155816]
[1771986826241,3.89780723,1931.6,1931.1,5.30614281]
[1771986826442,5.1920758,1931.6,1931.1,4.01155816]
[1771986826647,3.89780723,1931.5,1931.0,0.001]
[1771986826850,5.19220507,1931.4,1931.0,0.001]
[1771986827878,1.29439784,1931.4,1931.0,0.001]
[1771986828088,1.29439784,1931.4,1930.4,0.1265666]
[1771986828089,3.89780723,1931.0,1930.4,0.1265666]
[1771986828247,3.89780723,1931.0,1930.3,0.03638121]
[1771986828848,1.29473302,1930.9,1930.3,0.03638121]
[1771986829178,3.89780723,1930.8,1930.3,0.03638121]
[1771986829683,3.89780723,1931.3,1930.4,4.01155816]
[1771986829851,6.98092573,1931.2,1930.4,4.01155816]
[1771986830051,3.89780723,1931.3,1930.5,4.01155816]
[1771986830944,5.19233912,1931.2,1930.5,5.30655645]
[1771986831146,3.89780723,1931.1,1930.5,4.01155816]
[1771986831352,3.89780723,1931.1,1930.3,4.04793937]
[1771986831979,3.89780723,1931.1,1930.3,0.03638121]
[1771986832284,3.89780723,1930.9,1930.3,0.03638121]
[1771986833080,1.29480008,1930.8,1930.3,4.04793937]
[1771986835050,3.89780723,1930.7,1930.3,0.03638121]
[1771986836592,1.29480008,1930.8,1930.3,3.90483495]
[1771986836889,3.09051215,1930.7,1930.3,3.90483495]
[1771986837076,5.17421203,1930.8,1930.3,0.03638121]
[1771986837471,5.17421203,1930.8,1930.4,0.001]
[1771986837676,3.87941195,1930.7,1930.4,0.001]
[1771986838060,3.87941195,1930.7,1930.1,3.86845374]
[1771986838471,3.87941195,1930.7,1930.1,0.001]
[1771986838891,3.87941195,1930.7,1930.1,3.86945374]
[1771986839276,1.29493421,1930.6,1930.1,3.86945374]
[1771986839592,1.29493421,1930.6,1930.1,3.86414775]
[1771986840361,1.29491189,1930.7,1930.2,3.86845374]
[1771986840783,5.17432384,1930.7,1930.0,3.86845374]
[1771986840986,6.97239676,1930.6,1930.0,3.86845374]
[1771986841197,1.29491189,1930.7,1929.2,3.86845374]
[1771986841198,3.87941195,1930.5,1929.2,3.86845374]
[1771986841362,5.17454742,1930.3,1929.6,3.86845374]
[1771986842074,3.87941195,1930.2,1929.6,3.86845374]
[1771986842585,3.87941195,1930.2,1929.3,3.86845374]
[1771986842586,3.87941195,1930.1,1929.3,3.86845374]
[1771986842800,3.87941195,1929.9,1929.0,5.1644176]
[1771986843008,3.87941195,1929.9,1929.1,3.86845374]
[1771986843523,3.87941195,1929.9,1929.1,5.16439129]
[1771986843524,1.29547103,1929.8,1929.1,5.16439129]
[1771986843669,5.17488298,1929.8,1929.1,3.86845374]
[1771986843869,3.87941195,1929.7,1929.0,1.29595582]
[1771986845486,3.87941195,1929.7,1928.9,11.63850597]
[1771986845487,1.2956053,1929.6,1928.9,3.86845374]
[1771986845819,1.2956053,1929.6,1928.0,1.18308542]
[1771986845820,3.87941195,1928.9,1928.0,1.18308542]
[1771986846112,3.87941195,1928.9,1927.2,4.5763933]
[1771986846113,6.96513405,1928.8,1928.1,1.18308542]
[1771986846320,6.96513405,1928.8,1927.9,3.86845374]
[1771986846321,3.0857221,1928.7,1927.9,3.86845374]
[1771986846575,3.87941195,1929.1,1927.9,3.86845374]
[1771986846745,3.87941195,1928.9,1928.0,1.18308542]
[1771986847029,0.48107505,1928.8,1928.1,3.86845374]
[1771986847227,4.360487,1928.7,1928.1,1.18308542]
[1771986847386,4.360487,1928.6,1928.2,1.18308542]
[1771986847694,5.17568931,1928.6,1927.9,2.47977]
[1771986848085,1.29627736,1928.6,1928.0,1.18308542]
[1771986848613,3.87941195,1928.8,1928.0,1.18308542]
[1771986848910,1.29583992,1929.3,1928.3,3.86845374]
[1771986849088,0.4796589,1929.2,1928.3,3.86845374]
[1771986849293,3.87941195,1929.1,1928.4,1.18308542]
[1771986849490,1.29600829,1929.0,1928.3,1.29647876]
[1771986849694,5.17539985,1929.1,1928.3,1.29647876]
[1771986849897,5.17539985,1929.1,1928.4,1.18308542]
[1771986850637,5.17539985,1929.1,1928.5,1.18308542]
[1771986850839,3.87941195,1929.5,1928.6,3.86845374]
[1771986851135,1.29565614,1929.6,1928.6,5.05153916]
[1771986851136,4.35865555,1929.4,1928.6,5.05153916]
[1771986851341,3.87941195,1929.4,1928.7,1.18308542]
[1771986851559,5.17535306,1929.1,1928.4,1.18308542]
[1771986851745,0.002,1929.0,1928.4,2.47948758]
[1771986852035,0.002,1929.0,1928.4,2.47949515]
[1771986852234,3.88141195,1929.0,1928.5,1.18308542]
[1771986852441,3.88141195,1929.0,1928.6,1.18308542]
[1771986852442,0.002,1929.0,1928.6,1.18308542]
[1771986852733,0.002,1929.3,1928.7,3.86845374]
[1771986852898,5.1749051,1929.8,1928.7,3.86845374]
[1771986853098,0.47911641,1929.7,1928.8,5.04953916]
[1771986853299,0.47911641,1929.6,1928.8,3.86845374]
[1771986853499,5.1749051,1929.8,1928.9,5.04953916]
[1771986853730,0.47919771,1929.7,1929.0,1.29600829]
[1771986853946,7.7650852,1930.1,1929.1,3.86845374]
[1771986854111,0.47913215,1930.0,1929.2,3.86845374]
[1771986854314,5.17468282,1930.1,1929.2,3.86845374]
[1771986854633,0.47939887,1930.0,1929.3,1.18108542]
[1771986854839,3.87941195,1930.1,1929.3,5.04953916]
[1771986855133,5.17448032,1930.4,1929.5,3.86845374]
[1771986855299,0.47937125,1930.3,1929.5,3.86845374]
[1771986855496,0.47937125,1930.2,1929.5,3.86845374]
[1771986855696,0.47937125,1930.1,1929.6,2.47668663]
[1771986855898,5.17449503,1930.4,1929.6,6.34514037]
[1771986856127,0.47965748,1930.3,1929.7,1.18108542]
[1771986856314,0.47965748,1930.2,1929.7,5.04953916]
[1771986856519,5.17446445,1930.5,1929.8,1.18108542]
[1771986856719,4.35942429,1930.4,1929.8,1.18108542]
[1771986856917,4.35942429,1930.3,1929.8,1.18108542]
[1771986857133,0.48001234,1930.2,1929.5,1.29567105]
[1771986857331,4.35942429,1930.2,1929.6,1.18108542]
[1771986857515,0.48001234,1930.1,1929.5,1.29567105]
[1771986857712,1.29533678,1930.0,1929.6,1.18108542]
[1771986857929,0.48036946,1929.9,1929.3,1.18108542]
[1771986858129,3.87941195,1929.9,1929.3,1.18108542]
[1771986858332,0.48038126,1929.8,1929.3,1.18108542]
[1771986858533,3.87941195,1929.9,1929.4,1.18108542]
[1771986858845,1.29533678,1930.0,1929.1,5.16434352]
[1771986858846,4.3599067,1929.8,1929.2,1.18108542]
[1771986859152,3.87941195,1929.8,1929.1,1.29588978]
[1771986859354,3.87941195,1930.1,1929.1,1.29588978]
[1771986859526,0.48060243,1930.0,1929.3,3.86845374]
[1771986859723,0.48060243,1929.9,1929.4,5.16419334]
[1771986859925,1.29516553,1930.3,1929.5,3.86845374]
[1771986860125,0.48056948,1930.2,1929.5,5.04953916]
[1771986860357,0.48056948,1930.1,1929.5,5.04953916]
[1771986860551,0.48056948,1930.0,1929.6,1.18108542]
[1771986860732,0.48056948,1929.9,1929.6,1.18108542]
[1771986860933,5.17457748,1930.3,1929.7,1.18108542]
[1771986861127,4.3602249,1930.2,1929.6,1.18108542]
[1771986861352,4.3602249,1930.1,1929.5,1.18108542]
[1771986861589,3.87941195,1929.9,1929.2,1.29583022]
[1771986861848,1.29547103,1929.8,1929.3,1.18108542]
[1771986862220,1.29547103,1929.8,1929.4,1.18108542]
[1771986862426,1.29547103,1929.8,1929.3,1.18108542]
[1771986863050,5.17486419,1929.9,1929.3,1.18108542]
[1771986863247,5.17486419,1929.9,1929.4,1.18108542]
[1771986863447,5.17486419,1929.9,1929.3,1.18108542]
[1771986863927,3.87941195,1929.7,1928.7,3.86845374]
[1771986864147,4.78022814,1929.9,1928.6,8.6698372]
[1771986864148,1.29545224,1929.9,1929.1,3.86845374]
[1771986864449,0.4814244,1929.8,1929.1,3.86845374]
[1771986864748,1.29545224,1929.9,1929.1,3.86845374]
[1771986864925,4.36297206,1929.8,1929.2,1.18108542]
[1771986865121,0.48156011,1929.7,1929.2,1.18108542]
[1771986865331,0.48156011,1929.7,1928.8,7.35322964]
[1771986865538,4.2865418,1929.7,1928.9,4.83435169]
[1771986865738,0.48156011,1929.6,1929.0,1.29600829]
[1771986865938,5.67399285,1929.6,1929.1,1.18108542]
[1771986866160,5.19243274,1929.6,1929.1,1.18108542]
[1771986867051,0.48193487,1929.5,1929.1,1.18108542]
[1771986867253,5.19243274,1929.6,1929.1,1.18108542]
[1771986867453,0.48217747,1929.5,1929.1,1.18108542]
[1771986867659,1.29559207,1929.7,1929.2,1.18108542]
[1771986867858,0.48216411,1929.6,1929.1,1.29588986]
[1771986868165,1.29747103,1929.8,1929.1,2.47697528]
[1771986868467,0.48215081,1929.7,1929.2,1.18108542]
[1771986868669,1.29747103,1929.8,1927.3,7.65986329]
[1771986868670,3.8968245,1929.4,1928.3,3.75141573]
[1771986868845,0.48215081,1929.3,1928.5,3.66949573]
[1771986869962,0.48215081,1929.3,1928.6,4.96577282]
[1771986870167,1.7779618,1929.3,1928.6,4.96577282]
[1771986870377,0.48215081,1929.2,1928.6,4.96577282]
[1771986870750,5.1829099,1929.5,1928.7,3.66949573]
[1771986870751,1.29572906,1929.5,1928.7,3.66949573]
[1771986870945,0.48271384,1929.4,1928.8,3.66949573]
[1771986871156,1.29560965,1929.6,1928.8,3.66949573]
[1771986871364,4.37949978,1929.5,1928.8,3.66949573]
[1771986871584,0.48267528,1929.4,1928.8,3.66949573]
[1771986871985,0.48267528,1929.4,1928.8,4.96557611]
[1771986871986,0.4828903,1929.3,1928.8,4.96557611]
[1771986872159,1.29575415,1929.4,1928.8,4.96557611]
[1771986872476,0.48289406,1929.3,1928.8,1.29608038]
[1771986872659,5.1943329,1929.8,1928.9,7.15427163]
[1771986872838,3.5741143,1929.7,1929.0,3.66949573]
[1771986873041,0.48302133,1929.6,1929.0,3.66949573]
[1771986873237,0.48302133,1929.5,1929.0,3.66949573]
[1771986873441,0.48302133,1929.4,1929.0,3.66949573]
[1771986873670,5.1943329,1929.8,1929.0,3.66949573]
[1771986873867,3.57429146,1929.7,1929.0,3.66949573]
[1771986874066,0.48304606,1929.6,1929.1,1.29594111]
[1771986874254,0.48304606,1929.5,1929.1,1.29594111]
[1771986874457,0.48304606,1929.4,1929.1,1.29594111]
[1771986874676,5.19243327,1929.6,1928.8,1.29610681]
[1771986874876,4.37991258,1929.5,1928.8,1.29610681]
[1771986875052,0.48308808,1929.4,1928.8,4.96560254]
[1771986875982,1.29600829,1929.0,1928.3,4.96597449]
[1771986876291,0.48308808,1928.9,1928.4,3.66949573]
[1771986876450,0.48308808,1928.8,1928.4,3.66949573]
[1771986876780,1.29594149,1929.1,1928.4,3.66949573]
[1771986876987,6.99132476,1929.0,1928.3,1.29647876]
[1771986877148,1.29594363,1929.1,1928.4,3.66949573]
[1771986877343,3.09551976,1929.0,1928.4,3.66949573]
[1771986877649,1.29594763,1929.1,1928.4,3.66949573]
[1771986877974,1.29584146,1929.3,1928.6,7.15427163]
[1771986878174,6.99219676,1929.2,1928.5,1.2963443]
[1771986878358,3.8968245,1929.2,1928.5,1.2963443]
[1771986879071,3.09715153,1929.1,1928.5,1.2973443]
[1771986879275,0.48403626,1929.0,1928.5,1.2973443]
[1771986879474,0.48403626,1928.9,1928.6,3.66949573]
[1771986879676,5.19266596,1929.3,1928.6,3.66949573]
[1771986879851,3.58129892,1929.2,1928.6,3.66949573]
[1771986880050,0.48404604,1929.1,1928.7,1.29620988]
[1771986880251,0.48404604,1929.0,1928.7,1.29620988]
[1771986880453,5.19266596,1929.3,1928.7,1.29620988]
[1771986880654,3.58143048,1929.2,1928.7,1.29620988]
[1771986880856,2.46916396,1929.5,1928.7,3.66949573]
[1771986880857,0.4840886,1929.1,1928.7,3.66949573]
[1771986881055,3.8968245,1929.6,1928.9,3.66949573]
[1771986881286,3.8968245,1929.6,1928.6,4.78104985]
[1771986881287,3.8968245,1929.4,1928.6,1.29627395]
[1771986881460,0.48405183,1929.3,1928.6,1.29627395]
[1771986881661,0.48405183,1929.2,1928.6,1.29627395]
[1771986881858,0.48405183,1929.1,1928.6,1.29627395]
[1771986882191,1.29580676,1929.3,1928.6,1.29627395]
[1771986882360,0.48427865,1929.2,1928.6,1.29627395]
[1771986882686,0.48427865,1929.1,1928.6,1.29627395]
[1771986882862,0.48428888,1929.0,1928.5,4.96679074]
[1771986883069,0.48430983,1928.9,1928.5,4.96679074]
[1771986883380,3.8968245,1929.2,1928.5,4.96679074]
[1771986883582,0.48425168,1929.1,1928.5,4.96679074]
[1771986883888,0.48425168,1929.0,1928.5,4.96679074]
[1771986884073,3.8968245,1929.2,1928.5,4.96679074]
[1771986884383,1.78019151,1929.1,1928.5,4.96679074]
[1771986884589,0.48424133,1929.0,1928.5,4.96679074]
[1771986884786,1.29595018,1929.1,1928.5,4.96679074]
[1771986884999,0.48422156,1929.0,1928.5,4.96679074]
[1771986885159,1.29595018,1929.1,1928.5,4.96679074]
[1771986885362,0.484221,1929.0,1928.5,4.96679074]
[1771986885672,1.29595018,1929.1,1928.5,4.96679074]
[1771986885989,0.48425927,1929.0,1928.5,4.96679074]
[1771986886188,5.19296717,1928.8,1928.5,0.001]
[1771986886389,0.48425927,1928.7,1928.5,0.001]
[1771986886681,3.8968245,1928.8,1928.5,0.001]
[1771986887000,0.48434129,1928.7,1928.5,0.001]
[1771986887166,5.19284199,1929.0,1928.5,0.001]
[1771986887498,7.48096633,1928.9,1928.5,0.001]
[1771986887789,0.48430633,1928.8,1928.5,0.001]
[1771986887995,0.48430633,1928.7,1928.5,0.001]
[1771986888283,3.8968245,1928.9,1928.5,0.001]
[1771986888489,0.48435284,1928.8,1928.5,3.67049573]
[1771986888684,5.19274979,1929.2,1928.5,3.67049573]
[1771986888859,7.48090075,1929.1,1928.5,3.67049573]
[1771986889061,3.58407625,1929.0,1928.5,3.67049573]
[1771986889361,0.48434307,1928.9,1928.5,3.67049573]
[1771986889564,0.48434307,1928.8,1928.5,0.001]
[1771986889764,0.48433766,1928.7,1928.5,0.001]
[1771986889990,3.8968245,1929.0,1928.5,0.001]
[1771986890189,3.58441265,1928.9,1928.5,0.001]
[1771986890369,3.8968245,1929.0,1928.5,0.001]
[1771986890370,0.48437449,1928.8,1928.5,0.001]
[1771986890571,0.48444389,1928.7,1928.5,0.001]
[1771986890780,3.8968245,1928.9,1928.5,0.001]
[1771986890979,4.381268,1928.8,1928.5,0.001]
[1771986891189,0.4844435,1928.7,1928.5,0.001]
[1771986891490,0.4845588,1928.6,1928.5,0.001]
[1771986892287,5.19273815,1929.2,1928.5,3.67049573]
[1771986892481,6.99867666,1929.1,1928.5,4.96678029]
[1771986892794,6.99867666,1929.0,1928.5,0.001]
[1771986892967,3.76497264,1929.3,1928.5,0.001]
[1771986892968,6.99889085,1928.9,1928.5,0.001]
[1771986893168,3.8968245,1928.9,1928.5,0.001]
[1771986893362,6.99971311,1928.8,1928.5,0.001]
[1771986893588,2.46916396,1929.2,1927.7,3.66949573]
[1771986893589,3.8968245,1928.6,1927.7,3.66949573]
[1771986893785,3.8968245,1928.6,1927.9,3.66949573]
[1771986893786,3.10298983,1928.5,1927.9,3.66949573]
[1771986894262,3.8968245,1928.6,1927.9,3.66949573]
[1771986894464,5.19301629,1928.8,1928.0,4.96617622]
[1771986894678,6.99903104,1928.7,1928.5,0.001]
[1771986894905,3.10220654,1928.6,1928.5,0.001]
[1771986895569,7.04488923,1928.6,1928.5,0.001]
[1771986896897,3.10220654,1928.6,1928.5,0.001]
[1771986897399,1.29609954,1928.9,1928.5,0.001]
[1771986897698,7.04335532,1928.8,1928.5,0.001]
[1771986897874,7.04335532,1928.7,1927.9,4.96132372]
[1771986898074,3.94268269,1928.6,1927.9,4.96132372]
[1771986901297,3.94268269,1928.6,1928.0,3.66457633]
[1771986901494,5.95593986,1929.0,1928.2,3.4847759]
[1771986901495,1.29801662,1929.0,1928.2,3.4847759]
[1771986901702,3.10045021,1928.9,1928.3,3.66457633]
[1771986901911,0.002,1929.0,1928.3,3.66457633]
[1771986902076,3.10218918,1929.0,1928.3,3.66457633]
[1771986902766,3.10218918,1929.0,1928.5,3.66457633]